Workbook

Sheet MSU
B1: Mika Hartikainen | E1: 29.3.1968
B2: SUPERPESIS | E2: Runkosarja | I2: Kärkilyönnit (KL), pesänvälit | P2: Ylempi loppusarja | W2: Alempi loppusarja | AD2: Arvo-ottelut | AH2: Mitalit
B3: Vuosi | C3: Sija | D3: Seura | E3: OTT | F3: KUN | G3: LÖI | H3: TOI | I3: KL | J3: 0 > 1 | K3: 1 > 2 | L3: 2 > 3 | M3: 3 > k | N3: KL-% | P3: OTT | Q3: KUN | R3: LÖI | S3: TOI | T3: KL | U3: KL-% | W3: OTT | X3: KUN | Y3: LÖI | Z3: TOI | AA3: KL | AB3: KL-% | AD3: IL | AE3: LL | AF3: hSM | AG3: K | AH3: H | AI3: P
B4: 1988 | C4: 9. | D4: KPK | F4: suomensarja
B5: 1989
B6: 1990
B7: 1992 | C7: 6. | D7: HaKi | F7: ykköspesis
B8: 1993 | C8: 2. | D8: HaKi | F8: ykköspesis | W8: 2 | X8: 0 | Y8: 0 | Z8: 0 | AA8: 4 | AB8: 44.4 %
B9: 1994 | C9: 2. | D9: HaKi | F9: ykköspesis | W9: 18 | X9: 1 | Y9: 4 | Z9: 19 | AA9: 73 | AB9: 51.8 %
B10: 1995
B11: 1996
B12: 1997
B13: 1998
B14: 1999
B15: 2000 | C15: 1. | D15: KiPe | F15: ykköspesis | W15: 7 | X15: 0 | Y15: 0 | Z15: 5 | AA15: 18 | AB15: 40.9 %
B16: 2001 | C16: 7. | D16: KiPe 2 | F16: suomensarja
B17: 2002 | C17: 5. | D17: KiPe 2 | F17: suomensarja
B18: 2003 | C18: 9. | D18: KiPe 2 | F18: suomensarja
B19: Yhteensä | E19: 0 | F19: 0 | G19: 0 | H19: 0 | I19: 0 | J19: 0 | K19: 0 | L19: 0 | M19: 0 | P19: 0 | Q19: 0 | R19: 0 | S19: 0 | T19: 0 | U19: 0.0 % | W19: 27 | X19: 1 | Y19: 4 | Z19: 24 | AA19: 95 | AB19: 49.0 % | AD19: 0 | AE19: 0 | AF19: 0 | AG19: 0 | AH19: 0 | AI19: 0
B20: Pesispörssi | D20: 0.0
B22: URA SUPERISSA | E22: OTT | F22: KUN | G22: LÖI | H22: TOI | I22: KL | K22: ka/L | L22: ka/T | M22: ka/KL | N22: KL-% | P22: ENSIMMÄISET RUNKOSARJASSA
B23: Runkosarja | P23: Ottelu | R23: 04.09. 1993 HaKi - MuPS 2-4 | X23: 1. ottelu | Z23: 25 v 5 kk 6 pv
B24: Ylempi loppusarja | P24: Lyöty
B25: Alempi loppusarja | E25: 27 | F25: 1 | G25: 4 | H25: 24 | I25: 95 | K25: 0.19 | L25: 0.89 | M25: 3.52 | N25: 49.0 % | P25: Tuotu
B26: KAIKKI | E26: 27 | F26: 1 | G26: 4 | H26: 24 | I26: 95 | K26: 0.19 | L26: 0.89 | M26: 3.52 | N26: 49.0 % | P26: Kunnari
B28: Seurat | D28: KPK = Keravan Pallokerho (1960)
D29: HaKi = Hakunilan Kisa (1978)
D30: KiPe = Kinnarin Pesis (1998)

Sheet MYP, MSS
B1: Mika Hartikainen | E1: 29.3.1968
B2: YKKÖSPESIS | E2: Runkosarja | L2: Runkosarja TOP-10 | Q2: Jatkosarjat | X2: SUOMENSARJA | AA2: Runkosarja | AH2: Runkosarja TOP-10 | AM2: Jatkosarjat
B3: Vuosi | C3: Sija | D3: Seura | E3: OTT | F3: KUN | G3: LÖI | H3: TOI | I3: KL | J3: KL-% | L3: LÖI | M3: TOI | N3: L+T | O3: KL | Q3: OTT | R3: KUN | S3: LÖI | T3: TOI | U3: KL | V3: KL-% | X3: Vuosi | Y3: Sija | Z3: Seura | AA3: OTT | AB3: KUN | AC3: LÖI | AD3: TOI | AE3: KL | AF3: KL-% | AH3: LÖI | AI3: TOI | AJ3: L+T | AK3: KL | AM3: OTT | AN3: KUN | AO3: LÖI | AP3: TOI | AQ3: KL | AR3: KL-%
X4: 1988 | Y4: 9. | Z4: KPK | AA4: 20 | AB4: 0 | AC4: 7 | AD4: 26
B6: 1992 | C6: 6. | D6: HaKi | E6: 25 | F6: 1 | G6: 12 | H6: 22 | I6: 99
B7: 1993 | C7: 2. | D7: HaKi | E7: 25 | F7: 0 | G7: 4 | H7: 16 | I7: 96
B8: 1994 | C8: 2. | D8: HaKi | E8: 14 | F8: 0 | G8: 7 | H8: 17 | I8: 65
B10: 1999 | C10: 11. | D10: KiPe
B11: 2000 | C11: 1. | D11: KiPe | E11: 23 | F11: 0 | G11: 10 | H11: 22 | I11: 78 | J11: 55.3 %
X12: 2001 | Y12: 7. | Z12: KiPe 2 | AA12: 15 | AB12: 1 | AC12: 7 | AD12: 20 | AE12: 75 | AF12: 64.1 % | AG12: 117
X13: 2002 | Y13: 5. | Z13: KiPe 2 | AA13: 13 | AB13: 1 | AC13: 2 | AD13: 16 | AE13: 55 | AF13: 58.5 % | AG13: 94
X14: 2003 | Y14: 9. | Z14: KiPe 2 | AA14: 6 | AB14: 0 | AC14: 2 | AD14: 9 | AE14: 27 | AF14: 57.4 % | AG14: 47
B15: YHTEENSÄ | E15: =SUM(E4:E14) -> 87 | F15: =SUM(F4:F14) -> 1 | G15: =SUM(G4:G14) -> 33 | H15: =SUM(H4:H14) -> 77 | I15: =SUM(I4:I14) -> 338 | J15: 0.0 % | K15: =SUM(K4:K14) -> 0 | Q15: =SUM(Q4:Q14) -> 0 | R15: =SUM(R4:R14) -> 0 | S15: =SUM(S4:S14) -> 0 | T15: =SUM(T4:T14) -> 0 | U15: =SUM(U4:U14) -> 0 | V15: 0.0 % | W15: =SUM(W4:W14) -> 0 | X15: YHTEENSÄ | AA15: =SUM(AA4:AA14) -> 54 | AB15: =SUM(AB4:AB14) -> 2 | AC15: =SUM(AC4:AC14) -> 18 | AD15: =SUM(AD4:AD14) -> 71 | AE15: =SUM(AE4:AE14) -> 157 | AF15: =PRODUCT(AE15/AG15) -> 60.9 % | AG15: =SUM(AG4:AG14) -> 258 | AM15: =SUM(AM4:AM14) -> 0 | AN15: =SUM(AN4:AN14) -> 0 | AO15: =SUM(AO4:AO14) -> 0 | AP15: =SUM(AP4:AP14) -> 0 | AQ15: =SUM(AQ4:AQ14) -> 0 | AR15: 0.0 % | AS15: =SUM(AS4:AS14) -> 0
B17: KAIKKI OTTELUT | E17: OTT | F17: KUN | G17: LÖI | H17: TOI | I17: KL | J17: KL-% | L17: ka/L | M17: ka/T | N17: ka/l+t | O17: ka/kl | R17: Seurat | T17: KPK = Keravan Pallokerho (1960)
B18: SUPERPESIS | E18: 27 | F18: 1 | G18: 4 | H18: 24 | I18: 95 | J18: 49.0 % | K18: =PRODUCT(I18/J18) -> 193.877551 | L18: =PRODUCT((F18+G18)/E18) -> 0.19 | M18: =PRODUCT(H18/E18) -> 0.89 | N18: =PRODUCT((F18+G18+H18)/E18) -> 1.07 | O18: =PRODUCT(I18/E18) -> 3.52 | T18: HaKi = Hakunilan Kisa (1978)
B19: YKKÖSPESIS | E19: =PRODUCT(E15+Q15) -> 87 | F19: =PRODUCT(F15+R15) -> 1 | G19: =PRODUCT(G15+S15) -> 33 | H19: =PRODUCT(H15+T15) -> 77 | I19: =PRODUCT(I15+U15) -> 338 | K19: =PRODUCT(K15+W15) -> 0 | L19: =PRODUCT((F19+G19)/E19) -> 0.39 | M19: =PRODUCT(H19/E19) -> 0.89 | N19: =PRODUCT((F19+G19+H19)/E19) -> 1.28 | O19: =PRODUCT(I19/E19) -> 3.89 | T19: KiPe = Kinnarin Pesis (1998)
B20: SUOMENSARJA | E20: =PRODUCT(AA15+AM15) -> 54 | F20: =PRODUCT(AB15+AN15) -> 2 | G20: =PRODUCT(AC15+AO15) -> 18 | H20: =PRODUCT(AD15+AP15) -> 71 | I20: =PRODUCT(AE15+AQ15) -> 157 | J20: =PRODUCT(I20/K20) -> 60.9 % | K20: =PRODUCT(AG15+AS15) -> 258 | L20: =PRODUCT((F20+G20)/E20) -> 0.37 | M20: =PRODUCT(H20/E20) -> 1.31 | N20: =PRODUCT((F20+G20+H20)/E20) -> 1.69 | O20: =PRODUCT(I20/34) -> 4.62
B21: YHTEENSÄ | E21: =SUM(E18:E20) -> 168 | F21: =SUM(F18:F20) -> 4 | G21: 55 | H21: 172 | I21: 590 | K21: =SUM(K18:K20) -> 451.877551 | L21: =PRODUCT((F21+G21)/E21) -> 0.35 | M21: =PRODUCT(H21/E21) -> 1.02 | N21: =PRODUCT((F21+G21+H21)/E21) -> 1.38 | O21: =PRODUCT(I21/148) -> 3.99
